[Event "71st RUS-ch Higher League 2018"]
[Site "Yaroslavl"]
[Date "2018.06.30"]
[Round "5"]
[White "Shaposhnikov, Evgeny"]
[Black "Gordievsky, Dmitry"]
[Result "1-0"]
[ECO "A05"]
[WhiteElo "2572"]
[BlackElo "2641"]
[Annotator "ChessBase"]
[PlyCount "151"]
[EventDate "2018.06.26"]
[EventType "swiss"]
[EventCountry "RUS"]
[SourceTitle "playchess.com"]
[Source "ChessBase"]
[SourceQuality "1"]
[TimeControl "40/5400+30:1800+30"]

1. Nf3 {[%emt 0:00:00]} Nf6 {[%emt 0:01:44]} 2. c4 {[%emt 0:00:00]} d6 {[%emt 0:01:45]} 3. d4 {[%emt 0:01:06]} Nbd7 {[%emt 0:00:47]} 4. Nc3 {[%emt 0:00:19]} e5 {[%emt 0:00:29]} 5. Bg5 {[%emt 0:01:38]} Be7 {[%emt 0:01:01]} 6. e3 {[%emt 0:00:06]} c6 {[%emt 0:02:59]} 7. Qc2 {[%emt 0:01:23]} h6 {[%emt 0:05:19]} 8. Bh4 {[%emt 0:00:39]} O-O {[%emt 0:01:29]} 9. Be2 {[%emt 0:00:54]} exd4 {[%emt 0:16:28]} 10. Nxd4 {[%emt 0:00:21]} Nc5 {[%emt 0:01:12]} 11. Bg3 {[%emt 0:05:40]} a5 {[%emt 0:03:14]} 12. O-O {[%emt 0:00:31]} Re8 {[%emt 0:04:46]} 13. Rad1 {[%emt 0:01:44]} Qb6 {[%emt 0:02:15]} 14. Nb3 {[%emt 0:03:42]} Nxb3 {[%emt 0:02:50]} 15. Qxb3 {[%emt 0:05:02]} Qxb3 {[%emt 0:02:29]} 16. axb3 {[%emt 0:00:27]} Rd8 {[%emt 0:00:25]} 17. Rd4 {[%emt 0:12:21]} Be6 {[%emt 0:00:45]} 18. Na4 {[%emt 0:08:45]} Rab8 {[%emt 0:20:58]} 19. Nb6 {[%emt 0:09:59]} Nd7 {[%emt 0:00:20]} 20. Nxd7 {[%emt 0:05:32]} Rxd7 {[%emt 0:00:01]} 21. Rfd1 {[%emt 0:01:34]} Rbd8 {[%emt 0:00:13]} 22. e4 {[%emt 0:01:07]} f5 {[%emt 0:01:56]} 23. exf5 {[%emt 0:08:42]} Bxf5 {[%emt 0:00:01]} 24. R4d2 {[%emt 0:01:47]} Kf8 {[%emt 0:04:03]} 25. Bf3 {[%emt 0:02:37]} Kf7 {[%emt 0:07:53]} 26. Bf4 {[%emt 0:02:23]} d5 {[%emt 0:05:09]} 27. cxd5 {[%emt 0:01:46]} Bb4 {[%emt 0:00:12]} 28. Rd4 {[%emt 0:02:27]} Bc5 {[%emt 0:03:19]} 29. Rc4 {[%emt 0:04:32]} Bb4 {[%emt 0:01:19]} 30. g4 {[%emt 0:03:11]} Bh7 {[%emt 0:04:09]} 31. Bd2 {[%emt 0:06:19]} Bxd2 {[%emt 0:00:48]} 32. Rxd2 {[%emt 0:00:10]} cxd5 {[%emt 0:01:09]} 33. Rc5 {[%emt 0:00:26]} d4 {[%emt 0:00:52]} 34. Rxa5 {[%emt 0:00:51]} b6 {[%emt 0:03:48]} 35. Rb5 {[%emt 0:01:22]} Rd6 {[%emt 0:00:01]} 36. h4 {[%emt 0:02:02]} d3 {[%emt 0:00:32]} 37. Kh2 Ke6 38. Kg3 {[%emt 0:02:00]} Rc8 {[%emt 0:01:32]} 39. Kf4 {[%emt 0:01:33]} Rc5 {[%emt 0:00:21]} 40. Rb4 {[%emt 0:00:00]} Re5 {[%emt 0:00:00]} 41. Be4 {[%emt 0:08:57]} g5+ {[%emt 0:01:00]} 42. hxg5 {[%emt 0:00:08]} hxg5+ {[%emt 0:00:02]} 43. Ke3 {[%emt 0:00:28]} Bxe4 {[%emt 0:02:16]} 44. Rxe4 {[%emt 0:00:05]} Rxe4+ {[%emt 0:01:19]} 45. Kxe4 {[%emt 0:00:08]} Rd5 {[%emt 0:00:02]} 46. Rxd3 {[%emt 0:05:11]} Rb5 {[%emt 0:00:06]} 47. f3 {[%emt 0:00:15]} Rb4+ {[%emt 0:00:07]} 48. Ke3 {[%emt 0:00:04]} Ke5 {[%emt 0:00:08]} 49. Kd2 {[%emt 0:00:17]} Rf4 {[%emt 0:00:42]} 50. Re3+ {[%emt 0:00:51]} Kd6 {[%emt 0:00:36]} 51. Ke2 {[%emt 0:00:42]} Rb4 {[%emt 0:00:10]} 52. Kf2 {[%emt 0:01:11]} Rb5 {[%emt 0:03:54]} 53. Kg3 {[%emt 0:00:28]} Rb4 {[%emt 0:00:10]} 54. Re8 {[%emt 0:03:10]} Rxb3 {[%emt 0:00:05]} 55. Rf8 {[%emt 0:00:42]} Rxb2 {[%emt 0:01:54]} 56. Rf6+ {[%emt 0:02:46]} Kd7 {[%emt 0:01:46]} 57. Rf5 {[%emt 0:00:28]} Ra2 {[%emt 0:00:09]} 58. Rxg5 {[%emt 0:00:11]} Ra8 {[%emt 0:00:11]} 59. Rb5 {[%emt 0:02:33]} Kc6 {[%emt 0:00:07]} 60. Rb3 {[%emt 0:01:23]} b5 {[%emt 0:00:04]} 61. g5 {[%emt 0:00:28]} Rb8 {[%emt 0:00:26]} 62. Kg4 {[%emt 0:00:38]} Kd6 {[%emt 0:01:24]} 63. g6 {[%emt 0:01:51]} Ke7 {[%emt 0:02:05]} 64. Kg5 {[%emt 0:00:33]} b4 {[%emt 0:01:05]} 65. f4 {[%emt 0:00:16]} Kf8 {[%emt 0:01:18]} 66. f5 {[%emt 0:00:58]} Rb5 {[%emt 0:00:05]} 67. Kh6 {[%emt 0:01:17]} Rxf5 {[%emt 0:02:23]} 68. Rxb4 {[%emt 0:00:11]} Rf1 {[%emt 0:00:03]} 69. Rb8+ {[%emt 0:00:59]} Ke7 {[%emt 0:00:02]} 70. g7 {[%emt 0:00:55]} Rh1+ {[%emt 0:00:04]} 71. Kg6 {[%emt 0:00:03]} Rg1+ {[%emt 0:00:03]} 72. Kh7 {[%emt 0:00:04]} Rh1+ {[%emt 0:00:04]} 73. Kg8 {[%emt 0:00:04]} Ra1 {[%emt 0:00:31]} 74. Rf8 {[%emt 0:00:45]} Rb1 {[%emt 0:00:10]} 75. Rf4 {[%emt 0:00:33]} Ra1 {[%emt 0:00:07]} 76. Rh4 {[%emt 0:00:28]} 1-0

[Event "71st RUS-ch Higher League 2018"]
[Site "Yaroslavl"]
[Date "2018.06.30"]
[Round "5"]
[White "Vavulin, Maksim"]
[Black "Fakhrutdinov, Timur"]
[Result "1/2-1/2"]
[ECO "C65"]
[WhiteElo "2552"]
[BlackElo "2460"]
[Annotator "ChessBase"]
[PlyCount "64"]
[EventDate "2018.06.26"]
[EventType "swiss"]
[EventCountry "RUS"]
[SourceTitle "playchess.com"]
[Source "ChessBase"]
[SourceQuality "1"]
[TimeControl "40/5400+30:1800+30"]

1. e4 {[%emt 0:00:00]} e5 {[%emt 0:00:00]} 2. Nf3 {[%emt 0:00:00]} Nc6 {[%emt 0:00:00]} 3. Bb5 {[%emt 0:00:01]} Nf6 {[%emt 0:00:00]} 4. d3 {[%emt 0:00:13]} Bc5 {[%emt 0:00:07]} 5. Nbd2 {[%emt 0:00:14]} O-O {[%emt 0:01:45]} 6. O-O {[%emt 0:00:54]} Nd4 {[%emt 0:02:00]} 7. Nxd4 {[%emt 0:01:13]} Bxd4 {[%emt 0:00:08]} 8. c3 {[%emt 0:08:49]} Bb6 {[%emt 0:00:29]} 9. Nc4 {[%emt 0:00:26]} d5 {[%emt 0:18:57]} 10. exd5 {[%emt 0:02:45]} Qxd5 {[%emt 0:02:44]} 11. Nxb6 {[%emt 0:00:29]} axb6 {[%emt 0:00:05]} 12. Bc4 {[%emt 0:00:08]} Qd6 {[%emt 0:01:33]} 13. Bg5 {[%emt 0:01:22]} h6 {[%emt 0:11:54]} 14. Bh4 {[%emt 0:05:16]} Bg4 {[%emt 0:01:57]} 15. Qb3 {[%emt 0:03:40]} Be2 {[%emt 0:17:59]} 16. Rfe1 {[%emt 0:01:12]} Bxd3 {[%emt 0:01:03]} 17. Bxd3 {[%emt 0:01:47]} Qxd3 {[%emt 0:00:07]} 18. Rxe5 {[%emt 0:00:32]} Nd7 {[%emt 0:11:51]} 19. Rd1 {[%emt 0:15:31]} Nxe5 {[%emt 0:03:07]} 20. Rxd3 {[%emt 0:00:07]} Nxd3 {[%emt 0:00:07]} 21. h3 {[%emt 0:01:34]} Rfe8 {[%emt 0:10:50]} 22. Kh2 {[%emt 0:03:25]} Nc5 {[%emt 0:06:27]} 23. Qd5 {[%emt 0:03:00]} c6 {[%emt 0:01:01]} 24. Qd6 {[%emt 0:01:08]} Re4 {[%emt 0:04:05]} 25. Bg3 {[%emt 0:08:25]} Re2 {[%emt 0:01:23]} 26. b4 {[%emt 0:06:12]} Ne4 {[%emt 0:00:46]} 27. Qc7 {[%emt 0:00:14]} Nxg3 {[%emt 0:00:58]} 28. Kxg3 {[%emt 0:00:14]} Raxa2 {[%emt 0:00:59]} 29. Qc8+ {[%emt 0:01:57]} Kh7 {[%emt 0:00:05]} 30. Qf5+ {[%emt 0:00:05]} Kg8 {[%emt 0:00:05]} 31. Qc8+ {[%emt 0:00:10]} Kh7 {[%emt 0:00:04]} 32. Qf5+ {[%emt 0:00:06]} Kg8 {[%emt 0:00:03]} 1/2-1/2

[Event "71st RUS-ch Higher League 2018"]
[Site "Yaroslavl"]
[Date "2018.06.30"]
[Round "5"]
[White "Ovetchkin, Roman"]
[Black "Ponkratov, Pavel"]
[Result "0-1"]
[ECO "D85"]
[WhiteElo "2546"]
[BlackElo "2622"]
[Annotator "ChessBase"]
[PlyCount "76"]
[EventDate "2018.06.26"]
[EventType "swiss"]
[EventCountry "RUS"]
[SourceTitle "playchess.com"]
[Source "ChessBase"]
[SourceQuality "1"]
[TimeControl "40/5400+30:1800+30"]

1. d4 {[%emt 0:00:00]} Nf6 {[%emt 0:00:00]} 2. c4 {[%emt 0:00:00]} g6 {[%emt 0:00:00]} 3. Nf3 {[%emt 0:00:00]} Bg7 {[%emt 0:00:06]} 4. Nc3 {[%emt 0:00:13]} d5 {[%emt 0:00:06]} 5. cxd5 {[%emt 0:06:02]} Nxd5 {[%emt 0:00:05]} 6. e4 {[%emt 0:00:08]} Nxc3 {[%emt 0:00:11]} 7. bxc3 {[%emt 0:00:02]} c5 {[%emt 0:02:17]} 8. Bb5+ {[%emt 0:09:23]} Nd7 {[%emt 0:02:04]} 9. a4 {[%emt 0:04:52]} a6 {[%emt 0:07:44]} 10. Bd3 {[%emt 0:03:51]} cxd4 {[%emt 0:04:26]} 11. cxd4 {[%emt 0:00:14]} Nc5 {[%emt 0:00:07]} 12. Bc2 {[%emt 0:00:33]} Bg4 {[%emt 0:01:20]} 13. Be3 {[%emt 0:00:13]} Bxf3 {[%emt 0:05:28]} 14. gxf3 {[%emt 0:00:12]} Ne6 {[%emt 0:01:55]} 15. d5 {[%emt 0:01:19]} Nc5 {[%emt 0:02:28]} 16. Rb1 {[%emt 0:05:19]} Rc8 {[%emt 0:02:50]} 17. O-O {[%emt 0:03:26]} O-O {[%emt 0:00:16]} 18. f4 {[%emt 0:01:24]} Qd7 {[%emt 0:00:30]} 19. Qf3 {[%emt 0:01:49]} b5 {[%emt 0:08:19]} 20. axb5 {[%emt 0:10:48]} axb5 {[%emt 0:00:11]} 21. e5 {[%emt 0:19:24]} Na4 {[%emt 0:00:23]} 22. Rbc1 {[%emt 0:03:28]} Nc3 {[%emt 0:24:51]} 23. Bb3 {[%emt 0:00:50]} b4 {[%emt 0:00:04]} 24. Bd4 {[%emt 0:06:49]} Nb5 {[%emt 0:08:42]} 25. Bc5 {[%emt 0:06:18]} Qf5 {[%emt 0:05:19]} 26. Ba4 {[%emt 0:05:13]} Rxc5 {[%emt 0:02:03]} 27. Rxc5 {[%emt 0:00:31]} Nd4 {[%emt 0:00:03]} 28. Qe3 {[%emt 0:00:59]} Bxe5 {[%emt 0:10:08]} 29. fxe5 {[%emt 0:02:57]} Nf3+ {[%emt 0:00:05]} 30. Qxf3 {[%emt 0:01:15]} Qxf3 {[%emt 0:00:04]} 31. Bd1 {[%emt 0:05:39]} Qf4 {[%emt 0:00:06]} 32. Re1 {[%emt 0:00:13]} Qd2 {[%emt 0:00:04]} 33. Kf1 {[%emt 0:00:09]} b3 {[%emt 0:00:38]} 34. Rb5 {[%emt 0:00:46]} b2 {[%emt 0:00:05]} 35. d6 {[%emt 0:00:43]} exd6 {[%emt 0:00:42]} 36. exd6 {[%emt 0:00:02]} Rc8 {[%emt 0:00:22]} 37. d7 {[%emt 0:00:17]} Qxd7 {[%emt 0:00:14]} 38. Rxb2 {[%emt 0:00:11]} Rc1 {[%emt 0:00:05]} 0-1

[Event "71st RUS-ch Higher League 2018"]
[Site "Yaroslavl"]
[Date "2018.06.30"]
[Round "5"]
[White "Sychev, Klementy"]
[Black "Kobalia, Mikhail"]
[Result "0-1"]
[ECO "B82"]
[WhiteElo "2527"]
[BlackElo "2608"]
[Annotator "ChessBase"]
[PlyCount "166"]
[EventDate "2018.06.26"]
[EventType "swiss"]
[EventCountry "RUS"]
[SourceTitle "playchess.com"]
[Source "ChessBase"]
[SourceQuality "1"]
[TimeControl "40/5400+30:1800+30"]

1. e4 {[%emt 0:00:00]} c5 {[%emt 0:00:00]} 2. Nf3 {[%emt 0:00:00]} e6 {[%emt 0:00:00]} 3. d4 {[%emt 0:00:00]} cxd4 {[%emt 0:00:00]} 4. Nxd4 {[%emt 0:00:00]} Nc6 {[%emt 0:00:46]} 5. Nc3 {[%emt 0:00:00]} d6 {[%emt 0:00:05]} 6. Be3 {[%emt 0:02:04]} Nf6 {[%emt 0:00:17]} 7. f4 {[%emt 0:06:25]} Be7 {[%emt 0:01:52]} 8. Qf3 {[%emt 0:08:20]} e5 {[%emt 0:20:20]} 9. Nxc6 {[%emt 0:00:53]} bxc6 {[%emt 0:00:02]} 10. f5 {[%emt 0:00:25]} h5 {[%emt 0:12:12]} 11. O-O-O {[%emt 0:02:37]} Qa5 {[%emt 0:00:07]} 12. Bc4 {[%emt 0:01:42]} Bb7 {[%emt 0:00:03]} 13. Bb3 {[%emt 0:12:16]} Rd8 {[%emt 0:03:37]} 14. Bg5 {[%emt 0:10:17]} Qc7 {[%emt 0:06:47]} 15. Kb1 {[%emt 0:03:26]} Ba8 {[%emt 0:02:45]} 16. g3 {[%emt 0:12:05]} Rb8 {[%emt 0:07:29]} 17. h3 {[%emt 0:01:00]} a5 {[%emt 0:03:31]} 18. g4 {[%emt 0:02:28]} Nh7 {[%emt 0:00:15]} 19. Be3 {[%emt 0:04:22]} Ng5 {[%emt 0:05:43]} 20. Qg2 {[%emt 0:07:44]} h4 {[%emt 0:00:06]} 21. Qd2 {[%emt 0:01:01]} Nf3 {[%emt 0:01:32]} 22. Qe2 {[%emt 0:03:45]} Nd4 {[%emt 0:06:08]} 23. Rxd4 {[%emt 0:04:54]} exd4 {[%emt 0:00:04]} 24. Bxd4 {[%emt 0:00:04]} Bf6 {[%emt 0:01:20]} 25. Bxf6 {[%emt 0:03:49]} gxf6 {[%emt 0:00:16]} 26. Rd1 {[%emt 0:01:00]} Rd8 {[%emt 0:04:26]} 27. Qe3 {[%emt 0:01:01]} Qe7 {[%emt 0:00:35]} 28. Qf2 {[%emt 0:06:41]} Qe5 {[%emt 0:01:25]} 29. a3 {[%emt 0:04:47]} Rd7 {[%emt 0:02:17]} 30. Ne2 {[%emt 0:00:22]} Rb7 {[%emt 0:02:31]} 31. a4 {[%emt 0:00:10]} Rb4 {[%emt 0:02:56]} 32. Nf4 {[%emt 0:00:23]} c5 {[%emt 0:06:22]} 33. Nd3 {[%emt 0:01:05]} Qg3 {[%emt 0:03:50]} 34. Qf1 {[%emt 0:01:19]} Rd4 {[%emt 0:00:22]} 35. Nf2 {[%emt 0:00:31]} O-O {[%emt 0:02:47]} 36. Rxd4 {[%emt 0:00:14]} cxd4 {[%emt 0:00:01]} 37. Ka2 {[%emt 0:00:40]} Qf3 {[%emt 0:00:18]} 38. Qg1 {[%emt 0:00:33]} Bxe4 {[%emt 0:00:52]} 39. Nxe4 {[%emt 0:00:29]} Qxe4 {[%emt 0:00:02]} 40. Qf2 {[%emt 0:00:00]} Qe3 {[%emt 0:00:00]} 41. Qxh4 {[%emt 0:08:02]} Kg7 {[%emt 0:03:14]} 42. g5 {[%emt 0:00:07]} fxg5 {[%emt 0:01:13]} 43. Qh5 {[%emt 0:04:16]} Qf4 {[%emt 0:02:05]} 44. Qd1 {[%emt 0:06:01]} Rh8 {[%emt 0:09:08]} 45. Qd3 {[%emt 0:00:40]} Qe5 {[%emt 0:01:09]} 46. Qc4 {[%emt 0:02:31]} Rf8 {[%emt 0:03:56]} 47. Qc7 {[%emt 0:01:19]} Kf6 {[%emt 0:01:22]} 48. Qd7 {[%emt 0:01:52]} Qc5 {[%emt 0:00:59]} 49. Kb1 {[%emt 0:03:31]} Qb6 {[%emt 0:01:47]} 50. Ka2 {[%emt 0:01:24]} Qb4 {[%emt 0:00:14]} 51. Bd5 {[%emt 0:01:16]} Qc5 {[%emt 0:01:38]} 52. Bb3 {[%emt 0:00:04]} Qb6 {[%emt 0:00:04]} 53. Bc4 {[%emt 0:02:52]} Qd8 {[%emt 0:00:19]} 54. Qa7 {[%emt 0:01:00]} Kg7 {[%emt 0:04:37]} 55. Qxd4+ {[%emt 0:00:36]} Qf6 {[%emt 0:00:00]} 56. Qg4 {[%emt 0:01:31]} Rh8 {[%emt 0:00:07]} 57. Qf3 {[%emt 0:02:03]} Rh4 {[%emt 0:00:02]} 58. Qd5 {[%emt 0:00:24]} Rf4 {[%emt 0:01:13]} 59. Bb3 {[%emt 0:00:38]} Rxf5 {[%emt 0:00:17]} 60. Qg2 {[%emt 0:00:06]} Rf4 {[%emt 0:00:19]} 61. Qd2 {[%emt 0:00:49]} Qe5 {[%emt 0:00:11]} 62. Qg2 {[%emt 0:00:18]} Qc5 {[%emt 0:02:57]} 63. Qd2 {[%emt 0:00:46]} Rf1 {[%emt 0:01:13]} 64. Bd5 {[%emt 0:00:11]} Kf6 {[%emt 0:00:50]} 65. c4 {[%emt 0:00:49]} Rf2 {[%emt 0:04:06]} 66. Qc3+ {[%emt 0:00:14]} Ke7 {[%emt 0:00:12]} 67. Qc1 {[%emt 0:00:43]} Kd7 {[%emt 0:01:02]} 68. Qxg5 {[%emt 0:00:27]} Qb4 {[%emt 0:00:18]} 69. Qc1 {[%emt 0:00:37]} Qxa4+ {[%emt 0:00:28]} 70. Kb1 {[%emt 0:00:01]} Qb3 {[%emt 0:00:41]} 71. Be4 {[%emt 0:00:33]} Re2 {[%emt 0:01:14]} 72. Bf5+ {[%emt 0:00:53]} Kc6 {[%emt 0:00:20]} 73. c5 {[%emt 0:00:21]} dxc5 {[%emt 0:01:31]} 74. Bg4 {[%emt 0:00:41]} Rf2 {[%emt 0:00:28]} 75. Bd1 {[%emt 0:00:26]} Qd3+ {[%emt 0:00:31]} 76. Ka2 {[%emt 0:00:17]} Qd2 {[%emt 0:01:00]} 77. Qb1 {[%emt 0:00:08]} Kb5 {[%emt 0:00:39]} 78. Ka3 {[%emt 0:01:10]} Qb4+ {[%emt 0:00:12]} 79. Ka2 {[%emt 0:00:01]} a4 {[%emt 0:00:38]} 80. Ka1 {[%emt 0:00:07]} Qd2 {[%emt 0:00:14]} 81. Bxa4+ {[%emt 0:01:20]} Kxa4 {[%emt 0:00:46]} 82. Qe4+ {[%emt 0:00:32]} Qd4 {[%emt 0:00:38]} 83. Qa8+ {[%emt 0:00:18]} Kb3 {[%emt 0:00:22]} 0-1

[Event "71st RUS-ch Higher League 2018"]
[Site "Yaroslavl"]
[Date "2018.06.30"]
[Round "5"]
[White "Lobanov, Sergei"]
[Black "Esipenko, Andrey"]
[Result "1-0"]
[ECO "B90"]
[WhiteElo "2521"]
[BlackElo "2599"]
[Annotator "ChessBase"]
[PlyCount "66"]
[EventDate "2018.06.26"]
[EventType "swiss"]
[EventCountry "RUS"]
[SourceTitle "playchess.com"]
[Source "ChessBase"]
[SourceQuality "1"]
[TimeControl "40/5400+30:1800+30"]

1. e4 {[%emt 0:00:00]} c5 {[%emt 0:00:00]} 2. Nf3 {[%emt 0:00:00]} d6 {[%emt 0:00:00]} 3. d4 {[%emt 0:00:03]} cxd4 {[%emt 0:00:00]} 4. Nxd4 {[%emt 0:00:04]} Nf6 {[%emt 0:00:00]} 5. Nc3 {[%emt 0:00:04]} a6 {[%emt 0:00:02]} 6. Be3 {[%emt 0:04:30]} e5 {[%emt 0:00:13]} 7. Nb3 {[%emt 0:00:05]} Be7 {[%emt 0:00:24]} 8. f3 {[%emt 0:00:27]} Be6 {[%emt 0:00:31]} 9. Qd2 {[%emt 0:00:03]} O-O {[%emt 0:00:40]} 10. O-O-O {[%emt 0:00:04]} Nbd7 {[%emt 0:00:08]} 11. g4 {[%emt 0:00:23]} b5 {[%emt 0:00:31]} 12. g5 {[%emt 0:03:37]} Nh5 {[%emt 0:00:12]} 13. Rg1 {[%emt 0:07:39]} Nb6 {[%emt 0:27:53]} 14. Nd5 {[%emt 0:12:17]} Bxd5 {[%emt 0:05:43]} 15. exd5 {[%emt 0:00:06]} Qc7 {[%emt 0:05:48]} 16. Na5 {[%emt 0:33:56]} Nxd5 {[%emt 0:01:50]} 17. Qxd5 {[%emt 0:00:03]} Qxa5 {[%emt 0:00:11]} 18. Kb1 {[%emt 0:04:18]} Qc7 {[%emt 0:06:31]} 19. c4 {[%emt 0:04:48]} b4 {[%emt 0:04:15]} 20. Bh3 {[%emt 0:03:03]} g6 {[%emt 0:00:49]} 21. Bg4 {[%emt 0:00:36]} Nf4 {[%emt 0:07:44]} 22. Bxf4 {[%emt 0:00:06]} exf4 {[%emt 0:00:04]} 23. Rge1 {[%emt 0:01:19]} h5 {[%emt 0:01:36]} 24. gxh6 {[%emt 0:01:27]} Kh7 {[%emt 0:01:59]} 25. Qd4 {[%emt 0:01:45]} Kxh6 {[%emt 0:00:13]} 26. Qxf4+ {[%emt 0:00:03]} Bg5 {[%emt 0:01:19]} 27. Qxd6 {[%emt 0:00:32]} Qxc4 {[%emt 0:00:54]} 28. Re4 {[%emt 0:03:10]} Qb5 {[%emt 0:00:16]} 29. Bd7 {[%emt 0:02:52]} Qb8 {[%emt 0:08:39]} 30. h4 {[%emt 0:00:03]} Qxd6 {[%emt 0:02:33]} 31. hxg5+ {[%emt 0:00:06]} Kxg5 {[%emt 0:00:04]} 32. Rxd6 {[%emt 0:00:04]} Rad8 {[%emt 0:00:03]} 33. f4+ {[%emt 0:00:17]} Kh6 {[%emt 0:00:15]} 1-0

[Event "71st RUS-ch Higher League 2018"]
[Site "Yaroslavl"]
[Date "2018.06.30"]
[Round "5"]
[White "Moiseenko, Vadim"]
[Black "Alekseev, Evgeny"]
[Result "0-1"]
[ECO "B21"]
[WhiteElo "2517"]
[BlackElo "2627"]
[Annotator "ChessBase"]
[PlyCount "64"]
[EventDate "2018.06.26"]
[EventType "swiss"]
[EventCountry "RUS"]
[SourceTitle "playchess.com"]
[Source "ChessBase"]
[SourceQuality "1"]
[TimeControl "40/5400+30:1800+30"]

1. e4 {[%emt 0:02:28]} c5 {[%emt 0:00:20]} 2. Nf3 {[%emt 0:01:44]} e6 {[%emt 0:00:48]} 3. d4 {[%emt 0:00:17]} cxd4 {[%emt 0:01:03]} 4. c3 {[%emt 0:00:14]} dxc3 {[%emt 0:02:40]} 5. Nxc3 {[%emt 0:00:04]} a6 {[%emt 0:00:22]} 6. Bc4 {[%emt 0:01:44]} Nc6 {[%emt 0:02:09]} 7. O-O {[%emt 0:00:59]} Nge7 {[%emt 0:02:07]} 8. Bg5 {[%emt 0:00:11]} h6 {[%emt 0:03:46]} 9. Be3 {[%emt 0:00:47]} Ng6 {[%emt 0:07:08]} 10. Nd4 {[%emt 0:00:41]} Be7 {[%emt 0:08:29]} 11. f4 {[%emt 0:00:54]} O-O {[%emt 0:01:08]} 12. Qh5 {[%emt 0:05:42]} Nxd4 {[%emt 0:15:17]} 13. Bxd4 {[%emt 0:00:07]} Qc7 {[%emt 0:00:07]} 14. Bd3 {[%emt 0:15:16]} Nxf4 {[%emt 0:01:36]} 15. Qg4 {[%emt 0:00:18]} Ng6 {[%emt 0:03:10]} 16. e5 {[%emt 0:00:22]} Nxe5 {[%emt 0:03:03]} 17. Qg3 {[%emt 0:04:17]} Bc5 {[%emt 0:03:45]} 18. Bxc5 {[%emt 0:00:05]} Qxc5+ {[%emt 0:00:44]} 19. Kh1 {[%emt 0:00:05]} Nxd3 {[%emt 0:03:15]} 20. Qxd3 {[%emt 0:00:14]} d5 {[%emt 0:00:59]} 21. Qg3 {[%emt 0:00:11]} Qe7 {[%emt 0:14:16]} 22. Rae1 {[%emt 0:01:10]} Qg5 {[%emt 0:03:00]} 23. Qc7 {[%emt 0:00:22]} Qd8 {[%emt 0:01:30]} 24. Qf4 {[%emt 0:00:35]} Bd7 {[%emt 0:04:50]} 25. Rf3 {[%emt 0:00:07]} Rc8 {[%emt 0:01:02]} 26. Rg3 {[%emt 0:00:22]} Kh8 {[%emt 0:03:11]} 27. Rf1 {[%emt 0:00:35]} Rc4 {[%emt 0:02:32]} 28. Qd6 {[%emt 0:00:06]} f6 {[%emt 0:04:47]} 29. b3 {[%emt 0:00:57]} Rc7 {[%emt 0:00:55]} 30. a4 {[%emt 0:00:44]} Bc8 {[%emt 0:00:28]} 31. Qb4 {[%emt 0:00:03]} d4 {[%emt 0:01:18]} 32. Ne4 {[%emt 0:00:06]} e5 {[%emt 0:00:15]} 0-1

[Event "71st RUS-ch Higher League 2018"]
[Site "Yaroslavl"]
[Date "2018.06.30"]
[Round "5"]
[White "Sviridov, Valery"]
[Black "Kokarev, Dmitry"]
[Result "1/2-1/2"]
[ECO "A48"]
[WhiteElo "2514"]
[BlackElo "2603"]
[Annotator "ChessBase"]
[PlyCount "80"]
[EventDate "2018.06.26"]
[EventType "swiss"]
[EventCountry "RUS"]
[SourceTitle "playchess.com"]
[Source "ChessBase"]
[SourceQuality "1"]
[TimeControl "40/5400+30:1800+30"]

1. d4 {[%emt 0:00:00]} Nf6 {[%emt 0:00:00]} 2. Nf3 {[%emt 0:00:00]} g6 {[%emt 0:00:00]} 3. c4 {[%emt 0:00:00]} Bg7 {[%emt 0:00:00]} 4. g3 {[%emt 0:00:09]} d5 {[%emt 0:00:00]} 5. cxd5 {[%emt 0:00:21]} Nxd5 {[%emt 0:00:00]} 6. Bg2 {[%emt 0:00:10]} Nb6 {[%emt 0:00:03]} 7. O-O {[%emt 0:00:15]} Nc6 {[%emt 0:00:06]} 8. Nc3 {[%emt 0:02:15]} Nxd4 {[%emt 0:02:10]} 9. Nxd4 {[%emt 0:00:09]} Qxd4 {[%emt 0:00:04]} 10. Nb5 {[%emt 0:05:56]} Qc4 {[%emt 0:08:26]} 11. a4 {[%emt 0:03:18]} O-O {[%emt 0:00:15]} 12. b3 {[%emt 0:12:07]} Qg4 {[%emt 0:01:23]} 13. Ra2 {[%emt 0:02:31]} c6 {[%emt 0:02:51]} 14. Nc7 {[%emt 0:03:14]} Rb8 {[%emt 0:00:27]} 15. a5 {[%emt 0:01:30]} Na8 {[%emt 0:05:24]} 16. Nxa8 {[%emt 0:00:37]} Rxa8 {[%emt 0:00:08]} 17. a6 {[%emt 0:00:24]} bxa6 {[%emt 0:04:01]} 18. Bxc6 {[%emt 0:00:33]} Rb8 {[%emt 0:00:34]} 19. Bf3 {[%emt 0:01:24]} Qf5 {[%emt 0:13:01]} 20. Be3 {[%emt 0:03:06]} Qb5 {[%emt 0:03:52]} 21. Bxa7 {[%emt 0:03:35]} Qxb3 {[%emt 0:00:40]} 22. Ra4 {[%emt 0:08:24]} Rb5 {[%emt 0:02:37]} 23. Qxb3 {[%emt 0:02:27]} Rxb3 {[%emt 0:00:07]} 24. Rd1 {[%emt 0:01:31]} Bb7 {[%emt 0:02:45]} 25. Bxb7 {[%emt 0:00:49]} Rxb7 {[%emt 0:00:15]} 26. Rxa6 {[%emt 0:00:10]} h5 {[%emt 0:02:15]} 27. Be3 {[%emt 0:00:18]} Bf6 {[%emt 0:00:13]} 28. Kg2 {[%emt 0:00:29]} Kg7 {[%emt 0:00:09]} 29. h4 {[%emt 0:00:13]} Rc8 {[%emt 0:00:14]} 30. Bd4 {[%emt 0:00:33]} Bxd4 {[%emt 0:00:12]} 31. Rxd4 {[%emt 0:00:06]} Rbc7 {[%emt 0:00:08]} 32. Rd2 {[%emt 0:00:10]} Rc2 {[%emt 0:00:09]} 33. Rxc2 {[%emt 0:00:06]} Rxc2 {[%emt 0:00:04]} 34. e3 {[%emt 0:00:11]} Rc7 {[%emt 0:00:06]} 35. Kf3 {[%emt 0:00:06]} Rb7 {[%emt 0:00:06]} 36. Kg2 {[%emt 0:00:06]} Rc7 {[%emt 0:00:04]} 37. Kf3 {[%emt 0:00:05]} Rd7 {[%emt 0:00:05]} 38. Kg2 {[%emt 0:00:08]} Rc7 {[%emt 0:00:03]} 39. Kg1 {[%emt 0:00:06]} Rb7 {[%emt 0:00:04]} 40. Kf1 {[%emt 0:00:00]} Rc7 {[%emt 0:00:00]} 1/2-1/2